fUSD/lending_fUSD_20250724
["ID","MTS","AMOUNT","RATE_DAILY","PERIOD"]
[374512224,1753332573916,-150.0,0.00025487,4]
[374512225,1753332573940,-150.0,0.00025487,4]
[374512226,1753332573963,-675.48987391,0.00025521,2]
[374512227,1753332573987,-1000.0,0.00025521,2]
[374512228,1753332574013,-1000.0,0.00025521,2]
[374512229,1753332574040,-450.25453227,0.00025521,2]
[374512230,1753332574064,-150.0,0.00025521,4]
[374512231,1753332574090,-150.0,0.00025523,2]
[374512232,1753332574114,-383.08711683,0.00025544,2]
[374512233,1753332574139,-150.0,0.00025544,2]
[374512234,1753332574163,-541.0,0.0002555,2]
[374512235,1753332574190,-309.71626128,0.00025555,13]
[374512236,1753332574214,-150.0,0.00025566,4]
[374512237,1753332574237,-150.0,0.00025587,4]
[374512238,1753332574260,-150.0,0.00025598,4]
[374512239,1753332574285,-150.0,0.00025637,4]
[374512240,1753332574313,-150.0,0.00025637,4]
[374512241,1753332574340,-150.0,0.00025637,4]
[374512242,1753332574363,-150.0,0.00025637,4]
[374512243,1753332574388,-150.0,0.00025647,2]
[374512244,1753332574416,-309.71626128,0.00025659,13]
[374512245,1753332574439,-11150.5818337,0.00025667,3]
[374512246,1753332574464,-150.0,0.00025674,2]
[374512247,1753332574486,-150.0,0.00025676,4]
[374512248,1753332574510,-504.0,0.00025677,3]
[374512249,1753332574534,-150.0,0.00025687,4]
[374512250,1753332574557,-211.01152796,0.00025689,3]
[374512251,1753332574580,-383.08711683,0.00025695,2]
[374512252,1753332574604,-2922.00801498,0.00025695,2]
[374512253,1753332574625,-1000.0,0.00025699,2]
[374512254,1753332574649,-839.91269601,0.000257,3]
[374512255,1753332574672,-248.71531821,0.000257,2]
[374512256,1753332574697,-300.0,0.00025703,2]
[374512257,1753332574720,-150.0,0.00025708,4]
[374512258,1753332574742,-150.0,0.00025753,4]
[374512259,1753332574767,-150.0,0.00025754,2]
[374512260,1753332574795,-309.71626128,0.00025762,13]
[374512261,1753332574818,-272.27,0.00025768,2]
[374512262,1753332574842,-812.55,0.00025777,2]
[374512263,1753332574868,-150.0,0.00025781,2]
[374512264,1753332574891,-150.0,0.00025787,4]
[374512265,1753332574913,-150.0,0.00025787,4]
[374512266,1753332574937,-150.0,0.00025787,4]
[374512267,1753332574961,-150.0,0.00025806,4]
[374512268,1753332574985,-150.0,0.0002583,4]
[374512269,1753332575007,-150.0,0.0002583,4]
[374512270,1753332575031,-500.0,0.00025836,2]
[374512271,1753332575054,-383.08711683,0.00025845,2]
[374512272,1753332575077,-150.0,0.0002585,4]
[374512273,1753332575105,-309.71626128,0.00025866,14]
[374512274,1753332575128,-150.0,0.00025887,4]
[374512275,1753332575151,-154.65836055,0.00025892,2]
[374512276,1753332575174,-150.0,0.00025907,4]
[374512277,1753332575195,-150.0,0.00025907,4]
[374512278,1753332575219,-150.0,0.00025937,4]
[374512279,1753332575241,-151.28852331,0.00025968,2]
[374512280,1753332575268,-309.71626128,0.00025969,14]
[374512281,1753332575291,-150.0,0.00025974,4]
[374512282,1753332575313,-150.0,0.00025984,4]
[374512283,1753332575338,-150.0,0.00025987,4]
[374512284,1753332575361,-11150.5818337,0.00025989,3]
[374512285,1753332575385,-11150.5818337,0.0002599,3]
[374512286,1753332575408,-150.0,0.00025992,4]
[374512287,1753332575434,-150.0,0.00025995,2]
[374512288,1753332575457,-383.08711683,0.00025996,2]
[374512289,1753332575480,-2922.00801498,0.00025996,2]
[374512290,1753332575503,-251.924721,0.00025999,30]
[374512291,1753332575528,-1000.0,0.00025999,2]
[374512292,1753332575550,-2000.0,0.00026,2]
[374512293,1753332575572,-16765.0412123,0.00026,2]
[374512294,1753332575594,-10001.5276354,0.00026,10]
[374512295,1753332575616,-477.18900901,0.00026,10]
[374512296,1753332575639,-839.91269601,0.00026,10]
[374512297,1753332575662,-3011.58696962,0.00026,5]
[374512298,1753332575687,-150.0,0.00026032,2]
[374512299,1753332575710,-150.0,0.00026038,2]
[374512300,1753332575735,-150.0,0.00026039,2]
[374512301,1753332575759,-300.0,0.00026044,2]
[374512302,1753332575783,-150.0,0.00026061,4]
[374512303,1753332575806,-1500.0,0.00026068,2]
[374512304,1753332575829,-1173.20771623,0.00026068,2]
[374512305,1753332575858,-309.71626128,0.00026072,14]
[374512306,1753332575882,-150.0,0.00026087,4]
[374512307,1753332575905,-150.0,0.00026087,4]
[374512308,1753332575928,-150.0,0.00026087,4]
[374512309,1753332575951,-150.0,0.00026087,4]
[374512310,1753332575975,-300.0,0.00026088,2]
[374512311,1753332575998,-158.34022639,0.000261,2]
[374512312,1753332576023,-500.0,0.000261,2]
[374512313,1753332576046,-500.0,0.000261,2]
[374512314,1753332576069,-11150.5818337,0.00026112,3]
[374512315,1753332576093,-150.0,0.00026134,4]
[374512316,1753332576117,-150.0,0.00026138,4]
[374512317,1753332576140,-150.0,0.00026143,4]
[374512318,1753332576164,-383.08711683,0.00026147,2]
[374512319,1753332576189,-150.0,0.00026148,2]
[374512320,1753332576213,-150.0,0.00026164,2]
[374512321,1753332576240,-309.71626128,0.00026176,14]
[374512322,1753332576262,-150.0,0.00026187,4]
[374512323,1753332576288,-150.0,0.00026215,4]
[374512324,1753332576310,-150.0,0.00026215,4]
[374512325,1753332576336,-150.0,0.00026217,2]
[374512326,1753332576361,-168.0,0.0002622,2]
[374512327,1753332576385,-180.0,0.00026224,2]
[374512328,1753332576407,-150.0,0.00026237,4]
[374512329,1753332576432,-250.74,0.00026271,2]
[374512330,1753332576457,-168.0,0.00026273,2]
[374512331,1753332576479,-255.76,0.00026275,2]
[374512332,1753332576501,-240.85,0.00026275,2]
[374512333,1753332576525,-227.05,0.00026275,2]
[374512334,1753332576546,-150.0,0.00026276,4]
[374512335,1753332576572,-309.71626128,0.00026279,14]
[374512336,1753332576594,-150.0,0.00026287,4]
[374512337,1753332576616,-150.0,0.00026292,4]
[374512338,1753332576640,-168.0,0.00026295,2]
[374512339,1753332576664,-383.08711683,0.00026297,2]
[374512340,1753332576915,-2922.00801498,0.00026297,2]
[374512341,1753332576939,-168.0,0.00026299,2]
[374512342,1753332576961,-2000.0,0.000263,2]
[374512343,1753332576986,-150.0,0.00026304,2]
[374512344,1753332577009,-150.0,0.00026312,4]
[374512345,1753332577037,-150.0,0.00026328,2]
[374512346,1753332577065,-11150.5818337,0.00026334,3]
[374512347,1753332577088,-150.0,0.00026369,4]
[374512348,1753332577111,-168.0,0.00026381,2]
[374512349,1753332577136,-309.71626128,0.00026383,15]
[374512350,1753332577158,-150.0,0.00026387,4]
[374512351,1753332577180,-150.0,0.00026387,4]
[374512352,1753332577203,-150.0,0.00026387,4]
[374512353,1753332577225,-155.31517085,0.00026401,2]
[374512354,1753332577248,-150.0,0.00026418,4]
[374512355,1753332577273,-150.0,0.00026447,4]
[374512356,1753332577295,-150.0,0.00026447,4]
[374512357,1753332577318,-383.08711683,0.00026448,2]
[374512358,1753332577344,-1947.881392,0.00026459,16]
[374512359,1753332577369,-150.0,0.00026472,2]
[374512360,1753332577392,-150.0,0.0002648,4]
[374512361,1753332577420,-309.71626128,0.00026486,15]
[374512362,1753332577443,-150.0,0.00026487,4]
[374512363,1753332577468,-168.0,0.00026493,2]
[374512364,1753332577492,-300.0,0.00026499,2]
[374512365,1753332577516,-150.0,0.00026503,2]
[374512366,1753332577542,-150.0,0.00026513,2]
[374512367,1753332577564,-150.0,0.00026524,4]
[374512368,1753332577588,-150.0,0.00026534,2]
[374512369,1753332577611,-150.0,0.00026537,4]
[374512370,1753332577634,-504.0,0.00026557,4]
[374512371,1753332577657,-150.0,0.0002656,4]
[374512372,1753332577680,-11150.5818337,0.00026577,3]
[374512373,1753332577703,-150.0,0.00026587,4]
[374512374,1753332577728,-309.71626128,0.0002659,15]
[374512375,1753332577750,-383.08711683,0.00026599,2]
[374512376,1753332577776,-2922.00801498,0.00026599,2]
[374512377,1753332577798,-150.0,0.00026601,4]
[374512378,1753332577819,-150.0,0.00026601,4]
[374512379,1753332577843,-599.51957883,0.00026616,2]
[374512380,1753332577867,-150.0,0.00026628,2]
[374512381,1753332577887,-150.0,0.00026649,4]
[374512382,1753332577907,-150.0,0.00026664,2]
[374512383,1753332577931,-150.0,0.00026675,2]
[374512384,1753332577955,-150.0,0.00026678,4]
[374512385,1753332577977,-150.0,0.00026686,4]
[374512386,1753332578001,-150.0,0.00026686,4]
[374512387,1753332578024,-150.0,0.00026686,4]
[374512388,1753332578047,-11150.5818337,0.0002669,3]
[374512389,1753332578073,-150.0,0.00026692,2]
[374512390,1753332578101,-309.71626128,0.00026693,15]
[374512391,1753332578125,-180.0,0.00026696,2]
[374512392,1753332578149,-150.0,0.00026697,2]
[374512393,1753332578172,-28067.26,0.000267,2]
[374512394,1753332578195,-477.18900901,0.000267,3]
[374512395,1753332578218,-839.91269601,0.000267,3]
[374512396,1753332578241,-150.0,0.00026702,4]
[374512397,1753332578266,-150.0,0.00026714,2]
[374512398,1753332578292,-529.0,0.0002673,2]
[374512399,1753332578316,-150.0,0.00026737,2]
[374512400,1753332578341,-11150.5818337,0.00026746,3]
[374512401,1753332578365,-300.0,0.00026748,2]
[374512402,1753332578388,-150.0,0.00026748,2]
[374512403,1753332578410,-383.08711683,0.00026749,2]
[374512404,1753332578433,-150.0,0.00026755,4]
[374512405,1753332578455,-216.742,0.00026756,14]
[374512406,1753332578477,-3264.505,0.00026756,14]
[374512407,1753332578500,-150.0,0.00026757,2]
[374512408,1753332578525,-150.0,0.00026765,2]
[374512409,1753332578549,-150.0,0.00026769,2]
[374512410,1753332578572,-296.74667551,0.00026771,2]
[374512411,1753332578595,-200.0,0.00026774,2]
[374512412,1753332578619,-150.0,0.00026776,2]
[374512413,1753332578641,-150.0,0.00026786,4]
[374512414,1753332578668,-309.71626128,0.00026797,15]
[374512415,1753332578692,-150.0,0.000268,2]
[374512416,1753332578715,-150.0,0.00026805,2]
[374512417,1753332578738,-1000.0,0.00026817,2]
[374512418,1753332578760,-150.0,0.00026818,4]
[374512419,1753332578785,-200.0,0.00026823,2]
[374512420,1753332578808,-150.0,0.00026832,4]
[374512421,1753332578830,-150.0,0.00026836,2]
[374512422,1753332578852,-150.96298117,0.00026836,2]
[374512423,1753332578874,-150.0,0.00026836,2]
[374512424,1753332578896,-150.0,0.00026836,2]
[374512425,1753332578918,-150.0,0.00026836,2]
[374512426,1753332578940,-150.0,0.00026836,2]
[374512427,1753332578961,-150.83782721,0.00026836,2]
[374512428,1753332578984,-150.0,0.00026836,2]
[374512429,1753332579004,-150.0,0.00026836,2]
[374512430,1753332579030,-150.0,0.00026836,2]
[374512431,1753332579052,-500.0,0.00026836,2]
[374512432,1753332579076,-540.0,0.00026836,2]
[374512433,1753332579099,-150.0,0.00026836,2]
[374512434,1753332579121,-150.0,0.00026836,2]
[374512435,1753332579143,-150.0,0.00026836,2]
[374512436,1753332579165,-150.0,0.00026836,2]
[374512437,1753332579187,-150.0,0.00026836,2]
[374512438,1753332579208,-500.0,0.00026836,2]
[374512439,1753332579230,-150.0,0.00026836,2]
[374512440,1753332579252,-150.0,0.00026836,2]
[374512441,1753332579275,-150.0,0.00026836,2]
[374512442,1753332579298,-150.0,0.00026836,2]
[374512443,1753332579321,-150.0,0.00026836,4]
[374512444,1753332579346,-150.0,0.00026844,4]
[374512445,1753332579372,-150.0,0.00026859,2]
[374512446,1753332579396,-1981.9098,0.00026872,2]
[374512447,1753332579423,-854.5577086,0.00026872,2]
[374512448,1753332579447,-924.0,0.0002688,2]
[374512449,1753332579473,-62814.5652,0.00026882,3]
[374512450,1753332579496,-157.47940434,0.00026882,2]
[374512451,1753332579520,-150.0,0.00026886,4]
[374512452,1753332579545,-150.0,0.0002689,2]
[374512453,1753332579567,-11150.5818337,0.0002689,3]
[374512454,1753332579591,-150.0,0.00026892,2]
[374512455,1753332579613,-246.16185311,0.000269,2]
[374512456,1753332579635,-4359.10067556,0.000269,2]
[374512457,1753332579659,-2922.00801498,0.000269,2]
[374512458,1753332579686,-309.71626128,0.000269,16]
[374512459,1753332579709,-383.08711683,0.000269,2]
[374512460,1753332579730,-205.68750277,0.000269,5]
[374512461,1753332579752,-1089.97761305,0.000269,2]
[374512462,1753332579775,-177.39812881,0.000269,4]
[374512463,1753332579797,-177.39812881,0.000269,4]
[374512464,1753332579819,-177.39812881,0.000269,4]
[374512465,1753332579842,-177.39,0.000269,4]
[374512466,1753332579864,-200.494925,0.000269,2]
[374512467,1753332579888,-150.034722,0.000269,4]
[374512468,1753332579913,-150.034722,0.000269,4]
[374512469,1753332579937,-150.034722,0.000269,4]
[374512470,1753332579959,-150.03,0.000269,4]
[374512471,1753332579986,-204.83741839,0.000269,2]
[374512472,1753332580012,-300.0,0.00026901,2]
[374512473,1753332580037,-150.0,0.00026903,2]
[374512474,1753332580061,-150.0,0.00026909,4]
[374512475,1753332580087,-168.0,0.00026924,2]
[374512476,1753332580113,-150.0,0.00026931,2]
[374512477,1753332580137,-44602.3273347,0.0002694,3]
[374512478,1753332580162,-31263.6642815,0.0002694,3]
[374512479,1753332580187,-150.0,0.00026942,2]
[374512480,1753332580211,-168.0,0.00026944,2]
[374512481,1753332580235,-11150.5818337,0.00026949,3]
[374512482,1753332580259,-15631.8321408,0.00026949,3]
[374512483,1753332580282,-86343.05128477,0.0002695,2]
[374512484,1753332580307,-168.0,0.00026953,2]
[374512485,1753332580330,-21153.0,0.00026959,2]
[374512486,1753332580356,-151.0,0.00026959,2]
[374512487,1753332580381,-150.0,0.00026968,2]
[374512488,1753332580406,-194.52937529,0.00026969,2]
[374512489,1753332580431,-160.27,0.00026969,2]
[374512490,1753332580454,-700.0,0.0002697,2]
[374512491,1753332580476,-700.0,0.0002697,2]
[374512492,1753332580500,-700.0,0.0002697,2]
[374512493,1753332580523,-15631.8321408,0.0002697,3]
[374512494,1753332580552,-8803.7582448,0.00026971,2]
[374512495,1753332585869,3000.0,0.00021001,29]
[374512498,1753332632177,-400.0,0.000225,2]
[374512499,1753332632187,-2500.0,0.00022982,2]
[374512500,1753332632197,-1252.75950545,0.000231,2]
[374512501,1753332632209,-47.48049455,0.000231,2]
[374512502,1753332632218,-500.0,0.00023567,2]
[374512503,1753332632227,-844.2747,0.00024027,2]
[374512504,1753332632237,-258.67428731,0.00024115,2]
[374512509,1753332638207,-246.40217187,0.00024115,2]
[374512510,1753332638217,-1000.0,0.00024136,2]
[374512511,1753332638226,-1719.55766078,0.00024138,2]
[374512512,1753332638238,-2409.44233922,0.00024138,2]
[374512513,1753332638247,-863.0,0.00024138,2]
[374512514,1753332638258,-434.41825495,0.00024138,2]
[374512515,1753332638418,-5620.58174505,0.00024138,2]
[374512516,1753332638431,-20235.8441453,0.00024138,2]
[374512517,1753332638444,-508.0,0.00024138,2]
[374512518,1753332638470,-409.75522776,0.00024138,2]
[374512519,1753332638483,-225.40062694,0.00024138,2]
[374512520,1753332638493,-263.79386219,0.0002435,2]
[374512521,1753332638502,-175.86257479,0.0002435,2]
[374512522,1753332638512,-145.61185517,0.00024973,2]
[374512523,1753332638640,-283.54626646,0.00024973,2]
[374512524,1753332638652,-70.84187837,0.00024973,2]
[374512525,1753332638663,-500.0,0.00024973,2]
[374512526,1753332638675,-500.0,0.00024973,2]
[374512527,1753332638684,-503.17365136,0.00024973,2]
[374512529,1753332638695,-500.0,0.00024973,2]
[374512531,1753332638704,-264.78880488,0.00024973,2]
[374512533,1753332638714,-500.0,0.00024973,2]
[374512535,1753332638724,-499.86148384,0.00024973,2]
[374512536,1753332638734,-500.0,0.00024973,2]
[374512537,1753332638744,-500.0,0.00024973,2]
[374512538,1753332638754,-400.0,0.00025,7]
[374512539,1753332638763,-400.0,0.0002501,7]
[374512540,1753332638772,-300.89,0.00025131,2]
[374512541,1753332638781,-1000.0,0.00025521,2]
[374512542,1753332638790,-179.82484758,0.00025521,2]
[374512543,1753332638799,-522.66391697,0.00025521,2]
[374512544,1753332638808,-500.0,0.00025521,2]
[374512545,1753332638821,-502.31238747,0.00025521,2]
[374512546,1753332638830,-1000.0,0.00025521,2]
[374512547,1753332638839,-1000.0,0.00025521,2]
[374512548,1753332638849,-282.035,0.00025523,2]
[374512549,1753332638858,-211.01152796,0.00025667,3]
[374512550,1753332638867,-1000.0,0.00025699,2]
[374512551,1753332638876,-199.59650158,0.000259,14]
[374512552,1753332638887,-2.30279749,0.000259,14]
[374512553,1753332638897,-211.01152796,0.00026,10]
[374512555,1753332638907,-400.0,0.00026,7]
[374512557,1753332638917,-411.20788544,0.00026068,2]
[374512559,1753332638929,-737.95990087,0.00026068,2]
[374512573,1753332639030,-350.83221369,0.00026068,2]
[374512574,1753332639041,-273.08359204,0.00026068,2]
[374512577,1753332639052,-486.04,0.00026068,2]
[374512585,1753332639125,-740.87640796,0.00026068,2]
[374512587,1753332639134,-1500.0,0.00026068,2]
[374512589,1753332639144,-201.89929905,0.000261,14]
[374512591,1753332639154,-201.89929905,0.000263,14]
[374512593,1753332639168,-1293.13924382,0.00026459,16]
[374512596,1753332639179,-330.09524918,0.00026459,16]
[374512598,1753332639189,-201.89929905,0.000265,15]
[374512599,1753332639199,-977.4696975,0.00026616,2]
[374512601,1753332639209,-2000.0,0.00026616,2]
[374512603,1753332639218,-2000.0,0.00026616,2]
[374512604,1753332639229,-201.89929905,0.000267,15]
[374512605,1753332639238,-300.0,0.00026716,2]
[374512606,1753332639248,-150.0,0.0002677,2]
[374512607,1753332639258,-5729.28450995,0.0002684,2]
[374512608,1753332639268,-5729.28450989,0.00026847,2]
[374512609,1753332639279,-5729.28450989,0.00026853,2]
[374512610,1753332639290,-2106.90251342,0.0002686,2]
[374512613,1753332639302,-1674.22691774,0.0002686,2]
[374512615,1753332639314,-1948.15507873,0.0002686,2]
[374512617,1753332639326,-2228.33350448,0.00026867,2]
[374512619,1753332639338,-2367.66569118,0.00026867,2]
[374512664,1753332639724,-1133.28531423,0.00026867,2]
[374512669,1753332639767,-120.87561416,0.00026872,2]
[374512679,1753332639860,-39.42736761,0.00026872,2]
[374512681,1753332639870,-5729.28450989,0.00026873,2]
[374512683,1753332639880,-160.30298169,0.00026876,2]
[374512685,1753332639889,-160.30298169,0.00026879,2]
[374512687,1753332639904,-5729.28450989,0.0002688,2]
[374512689,1753332639914,-160.30298169,0.00026883,2]
[374512691,1753332639923,-160.30298169,0.00026886,2]
[374512693,1753332639933,-160.30298169,0.0002689,2]
[374512695,1753332639942,-300.0,0.00026891,2]
[374512697,1753332639952,-201.89929905,0.000269,16]
[374512699,1753332639962,-150.0,0.00026934,2]
[374512701,1753332639973,-5188.1901081,0.00026969,2]
[374512703,1753332639982,-2053.2604931,0.00026969,2]
[374512705,1753332639992,-200.0,0.00026971,2]
[374512707,1753332640002,-16588.66304222,0.00026971,3]
[374512825,1753332641109,-358.16534947,0.00026766,2]
[374512828,1753332641121,-641.83465053,0.00026766,2]
[374512830,1753332641131,-1000.0,0.00026775,2]
[374512832,1753332641141,-188.26123477,0.0002678,2]
[374512834,1753332641151,-293.7683959,0.00026848,2]
[374512836,1753332641161,-150.0,0.00026911,2]
[374512838,1753332641171,-150.0,0.0002693,2]
[374512840,1753332641180,-1000.0,0.00026935,2]
[374512842,1753332641190,-3645.8688247,0.00026971,3]
[374512855,1753332641305,-68970.12280248,0.00026971,3]
[374512857,1753332641315,-203213.81783,0.00026971,3]
[374512859,1753332641325,-101292.7950681,0.00026972,3]
[374512876,1753332641483,-591.80187937,0.00026972,3]
[374513334,1753332646451,-1000.0,0.00023246,2]
[374513336,1753332646460,-4920.0,0.00026887,2]
[374513763,1753332651382,-809.28450989,0.00026887,2]
[374513766,1753332651392,-125.00954779,0.00026893,2]
[374513768,1753332651404,-35.2934339,0.00026893,2]
[374513770,1753332651414,-372.8910188,0.000269,2]
[374513777,1753332651471,-468.98968986,0.000269,2]
[374513779,1753332651483,-1132.143363,0.000269,2]
[374513781,1753332651496,-932.04304538,0.000269,2]
[374513783,1753332651505,-247.00534128,0.00026955,2]
[374513785,1753332651515,-1989.96241334,0.00026972,3]
[374514622,1753332703887,577.0,0.0002739,120]
[374514623,1753332799680,435.25,0.00025003,120]
[374514624,1753332824056,-153.0,0.00035604,120]
[374514625,1753332824091,-500.0,0.00035604,120]
[374514626,1753332824125,-384.6437369,0.00035604,120]
[374514627,1753332824156,-170.30004846,0.00035604,120]
[374514628,1753332824186,-264.0,0.00035604,120]
[374514629,1753332824215,-4245.20679253,0.00035604,120]
[374514630,1753332824245,-455.08,0.00035604,120]
[374514631,1753332824277,-455.08,0.00035604,120]
[374514632,1753332824307,-455.08,0.00035604,120]
[374514633,1753332824336,-455.08,0.00035604,120]
[374514634,1753332824363,-455.08,0.00035604,120]
[374514635,1753332824392,-455.08,0.00035604,120]
[374514636,1753332824420,-455.08,0.00035604,120]
[374514637,1753332824450,-455.08,0.00035604,120]
[374514638,1753332824483,-455.08,0.00035604,120]
[374514639,1753332824517,-455.08,0.00035604,120]
[374514640,1753332824550,-455.08,0.00035604,120]
[374514641,1753332824581,-455.08,0.00035604,120]
[374514642,1753332824611,-455.08,0.00035604,120]
[374514643,1753332824641,-455.08,0.00035604,120]
[374514644,1753332824671,-455.08,0.00035604,120]
[374514645,1753332824702,-455.08,0.00035604,120]
[374514646,1753332824732,-455.08,0.00035604,120]
[374514647,1753332824761,-455.08,0.00035604,120]
[374514648,1753332824788,-455.08,0.00035604,120]
[374514649,1753332824816,-455.08,0.00035604,120]
[374514650,1753332824844,-455.08,0.00035604,120]
[374514651,1753332824872,-455.08,0.00035604,120]
[374514652,1753332824904,-455.08,0.00035604,120]
[374514653,1753332824935,-455.12143557,0.00035604,120]
[374514654,1753332824965,-180.86068932,0.00035604,120]
[374514655,1753332825323,-426.0,0.00035604,120]
[374514656,1753332825357,-9079.10520339,0.00035604,120]
[374514657,1753332825393,-1329.0,0.00035604,120]
[374514658,1753332825425,-165.86762658,0.00035604,120]
[374514659,1753332825457,-4647.82,0.00035604,120]
[374514660,1753332825485,-1000.0,0.00035604,120]
[374514661,1753332825514,-2873.35052392,0.00035604,120]
[374514662,1753332825542,-2476.16946808,0.00035604,120]
[374514663,1753332825570,-400.0,0.00035604,120]
[374514664,1753332825598,-352.50932059,0.00035604,120]
[374514665,1753332825625,-485.51275022,0.00035604,120]
[374514666,1753332825654,-400.0,0.00035604,120]
[374514667,1753332825683,-400.0,0.00035604,120]
[374514668,1753332825714,-400.0,0.00035604,120]
[374514669,1753332825744,-400.0,0.00035604,120]
[374514670,1753332825773,-400.0,0.00035604,120]
[374514671,1753332825802,-287.82791538,0.00035604,120]
[374514672,1753332825831,-400.0,0.00035604,120]
[374514673,1753332825859,-545.13298846,0.00035604,120]
[374514674,1753332825889,-400.0,0.00035604,120]
[374514675,1753332825917,-400.0,0.00035604,120]
[374514676,1753332825945,-400.0,0.00035604,120]
[374514677,1753332825973,-400.0,0.00035604,120]
[374514678,1753332826002,-250.57316638,0.00035604,120]
[374514679,1753332826036,-448.02,0.00035604,120]
[374514680,1753332826064,-448.02,0.00035604,120]
[374514681,1753332826093,-448.02,0.00035604,120]
[374514682,1753332826121,-448.02,0.00035604,120]
[374514683,1753332826150,-448.02,0.00035604,120]
[374514684,1753332826178,-448.02,0.00035604,120]
[374514685,1753332826207,-448.02,0.00035604,120]
[374514686,1753332826238,-448.02,0.00035604,120]
[374514687,1753332826268,-448.02,0.00035604,120]
[374514688,1753332826298,-448.02,0.00035604,120]
[374514689,1753332826327,-448.02,0.00035604,120]
[374514690,1753332826355,-448.02,0.00035604,120]
[374514691,1753332826384,-448.02,0.00035604,120]
[374514692,1753332826413,-448.02,0.00035604,120]
[374514693,1753332826446,-448.02,0.00035604,120]
[374514694,1753332826474,-461.23760862,0.00035604,120]
[374514695,1753332826504,-448.02,0.00035604,120]
[374514696,1753332826533,-448.02,0.00035604,120]
[374514697,1753332826561,-448.02,0.00035604,120]
[374514698,1753332826589,-448.02,0.00035604,120]
[374514699,1753332826619,-448.02,0.00035604,120]
[374514700,1753332826649,-448.02,0.00035604,120]
[374514701,1753332826681,-448.02,0.00035604,120]
[374514702,1753332826712,-448.02,0.00035604,120]
[374514703,1753332826744,-448.18456641,0.00035604,120]
[374514704,1753332826773,-175.63941353,0.00035604,120]
[374514705,1753332826802,-400.0,0.00035604,120]
[374514706,1753332826833,-400.0,0.00035604,120]
[374514707,1753332826863,-400.0,0.00035604,120]
[374514708,1753332826891,-502.11651986,0.00035604,120]
[374514709,1753332826917,-481.9091167,0.00035604,120]
[374514710,1753332826945,-400.0,0.00035604,120]
[374514711,1753332826975,-400.0,0.00035604,120]
[374514712,1753332827003,-400.0,0.00035604,120]
[374514713,1753332827032,-232.82589028,0.00035604,120]
[374514714,1753332827061,-400.0,0.00035604,120]
[374514715,1753332827091,-400.0,0.00035604,120]
[374514716,1753332827119,-402.31949029,0.00035604,120]
[374514717,1753332827147,-400.0,0.00035604,120]
[374514718,1753332827174,-541.48559217,0.00035604,120]
[374514719,1753332827202,-400.0,0.00035604,120]
[374514720,1753332827231,-400.0,0.00035604,120]
[374514721,1753332827259,-467.27513276,0.00035604,120]
[374514722,1753332827287,-400.0,0.00035604,120]
[374514723,1753332827315,-400.0,0.00035604,120]
[374514724,1753332827343,-286.45741946,0.00035604,120]
[374514725,1753332827371,-400.0,0.00035604,120]
[374514726,1753332827400,-400.0,0.00035604,120]
[374514727,1753332827429,-400.0,0.00035604,120]
[374514728,1753332827463,-202.7981401,0.00035604,120]
[374514729,1753332827493,-461.05577593,0.00035604,120]
[374514730,1753332827522,-400.0,0.00035604,120]
[374514731,1753332827550,-400.0,0.00035604,120]
[374514732,1753332827577,-408.88433863,0.00035604,120]
[374514733,1753332827609,-461.07492516,0.00035604,120]